Cogmind - Beta 14 *** ADVENTURER MODE // 2024.10.10 @ 20:15:29 Player: Jefffff Result: Destroyed by H-55 Commando with Gauss Rifle Performance ------------- Evolutions (2) 1000 Regions Visited (5) 1000 Robots Destroyed (70) 350 Value Destroyed (3459) 3459 Prototype IDs (6) 120 Alien Tech Used (0) 0 Bonus (1704) 1704 TOTAL SCORE: 7633 Bonus ------- High Alert Combat Kills 230 Follower Combat Kills 274 Entered Garrisons 200 Used RIF Installer 1000 Cogmind --------- Core Integrity 0/550 Matter 290/300 Energy 99/100 System Corruption 6% Temperature Cool (0) Movement Core (150) Ox2 Location -8/Materials Parts ------- > --- POWER (2) -------- (None) > --- PROPULSION (4) --- (None) > --- UTILITY (3) ------ Relay Coupler [Swarmer] (53) Relay Coupler [Sentry] (3) Relay Coupler [Specialist] (21) > --- WEAPON (2) ------- Improved Assault Rifle Great Maul > --- INVENTORY (5) ---- Hacking Suite Relay Coupler [Swarmer] (43) Relay Coupler [Cutter] (32) Relay Coupler [Sentry] (26) Assault Rifle Peak State ------------ > --- POWER ------------ Light Angular Momentum Engine > --- PROPULSION ------- Aluminum Leg VSS Leg VSS Leg Gravmag System > --- UTILITY ---------- Relay Coupler [Swarmer] Relay Coupler [Grunt] Relay Coupler [Sentry] > --- WEAPON ----------- Remote Datajack Great Maul > --- INVENTORY -------- Relay Coupler [Swarmer] Relay Coupler [Cutter] Relay Coupler [Sentry] Relay Coupler [Sentry] [Rating: 34] Favorites ----------- Power Light Ion Engine Engine Light Ion Engine Power Core Light Nuclear Core Propulsion Cesium-ion Thruster Treads Light Treads Leg Aluminum Leg Wheel Wheel Hover Unit Gravmag System Flight Unit Cesium-ion Thruster Utility Improved Heat Sink Device Improved Heat Sink Storage Huge Storage Unit Processor Melee Analysis Suite Hackware Relay Coupler [Swarmer] Protection Weapon Shielding Weapon Light Assault Rifle Energy Gun Spread Laser Energy Cannon Beam Cannon Ballistic Gun Light Assault Rifle Special Weapon Remote Datajack Impact Weapon Mace Special Melee Weapon Datajack Build | -11 -10 -9 -8 -8 -8 ------- Run | Yrd Mat Mat Mat Gar Mat Slots Evolved 4 | . . 2 2 . . Power 1 | . . . 1 . . Propulsion 2 | . . 1 1 . . Utility 1 | . . 1 . . . Weapon . | . . . . . . Parts Attached 96 | 4 15 33 3 37 4 Power 16 | 1 4 4 . 7 . Engine 8 | 1 1 4 . 2 . Core 8 | . 3 . . 5 . Reactor . | . . . . . . Propulsion 40 | 2 3 15 1 18 1 Treads 2 | . . . . 2 . Leg 23 | . . 9 . 14 . Wheel 9 | 2 3 3 . . 1 Hover 1 | . . . . 1 . Flight 5 | . . 3 1 1 . Utility 20 | 1 3 6 1 8 1 Device 7 | . . 3 1 3 . Storage 3 | 1 2 . . . . Processor 2 | . . 1 . 1 . Hackware 5 | . . . . 4 1 Protection 3 | . 1 2 . . . Artifact . | . . . . . . Weapon 20 | . 5 8 1 4 2 Energy Gun 3 | . . 3 . . . Energy Cannon 3 | . 2 1 . . . Ballistic Gun 10 | . 3 3 1 1 2 Ballistic Cannon . | . . . . . . Launcher . | . . . . . . Special Weapon 1 | . . . . 1 . Impact Weapon 2 | . . . . 2 . Slashing Weapon . | . . . . . . Piercing Weapon . | . . . . . . Special Melee Weapon 1 | . . 1 . . . Unidentified Prototypes . | . . . . . . Corrupted Parts 2 | . . . . 2 . System Corruption 5 | . . . . 5 . Parts Lost 34 | . 1 6 1 19 7 Power 8 | . . 1 . 6 1 Propulsion 19 | . 1 4 . 9 5 Utility 3 | . . 1 . 2 . Weapon 4 | . . . 1 2 1 Highest Loss Streak 8 | . 1 1 1 8 7 To Critical Strikes 2 | . . . . 2 . Average Slot Usage (%) 91 | . 98 98 90 83 79 Engine 6 | . 7 7 9 4 7 Core 4 | . 7 3 . 4 . Treads 1 | . . . . 3 . Leg 12 | . . 22 . 11 28 Wheel 8 | . 27 3 . . . Hover 1 | . . . . 3 . Flight 7 | . . 6 36 11 . Device 10 | . . 13 20 16 . Storage 6 | . 14 9 . . . Processor 2 | . . . 6 6 . Hackware 3 | . . . . 3 25 Protection 5 | . 13 9 . . . Energy Cannon 6 | . 13 10 . . . Ballistic Gun 8 | . 13 10 8 5 . Special Weapon 1 | . . . . 3 7 Impact Weapon 4 | . . . . 8 9 Peak Build Rating 34 | 4 11 20 25 34 32 Average Rating 18 | 3 9 14 24 26 28 On Entrance 14 | . 4 11 20 22 32 Naked Turns . | . . . . . . Heaviest Build 99 | 8 90 99 12 22 16 Greatest Support 51 | 26 26 42 20 51 47 Greatest Overweight (x) 18 | . 5 18 . 2 2 Average Overweight (x) . | . 2 1 . . . Largest Inventory Capacity 25 | 8 25 25 5 5 5 Average Capacity 13 | 6 21 22 5 5 5 Most Carried 25 | 8 25 25 5 5 5 Average Carried 12 | 3 19 21 3 4 4 Final Capacity 25 | 8 25 5 5 5 5 Final Carried 25 | 8 25 5 3 5 5 Class Distribution -------------------- 49% | Mutant 25% | Scavenger-Mutant 9% | Infiltrator-Sprinter 7% | Bothacker-Mutant 6% | Sprinter Dominant Class ---------------- Mutant | -10/Materials Mutant | -9/Materials Sprinter | -8/Materials Scavenger-Mutant | -8/Garrison Bothacker-Mutant | -8/Materials Resources | -11 -10 -9 -8 -8 -8 ----------- Run | Yrd Mat Mat Mat Gar Mat Matter Collected 1811 | 240 489 409 . 572 101 Remotely . | . . . . . . Salvage Created 2786 | . 773 1070 . 676 267 Parts 135 | . 45 62 . 23 5 Haulers Intercepted 4 | . 2 1 . . 1 Recyclers Shooed 3 | . 2 1 . . . Parts Field Recycled . | . . . . . . Retrieved Matter . | . . . . . . Parts Self-Destructed . | . . . . . . Prevented . | . . . . . . Kills | -11 -10 -9 -8 -8 -8 ------- Run | Yrd Mat Mat Mat Gar Mat Combat Hostiles Destroyed 53 | . 13 20 . 17 3 Melee 11 | . . . . 9 2 Guns 13 | . 4 6 . 3 . Cannons 22 | . 8 14 . . . Classes Destroyed 11 | . 5 3 . 3 . Worker 2 | . . 2 . . . Hauler 4 | . 2 1 . . 1 Recycler 4 | . 2 1 . . 1 Operator 1 | . . 1 . . . Watcher 6 | . 3 3 . . . Swarmer 6 | . 3 3 . . . Grunt 32 | . 10 10 . 10 2 Duelist 1 | . . . . 1 . Sentry 9 | . . 7 . 2 . Hunter 3 | . . . . 2 1 Programmer 2 | . . . . 2 . Best Kill Streak 7 | . 3 7 . 3 4 Combat Bots Only 5 | . 3 5 . 3 3 Max Kills in Single Turn 1 | . 1 1 . 1 1 Gunslinging . | . . . . . . Exploded . | . . . . . . Melee 1 | . . . . 1 1 Uniques/NPCs Destroyed . | . . . . . . Combat | -11 -10 -9 -8 -8 -8 -------- Run | Yrd Mat Mat Mat Gar Mat Hostile Shots Fired 461 | . 34 136 17 211 63 Missed 137 | . 5 44 7 69 12 Damage Taken 3623 | . 275 854 118 1877 499 Core 761 | . 53 158 24 426 100 Absorbed by Shields 17 | . . . . 17 . Redirected to Shielding 52 | . 16 36 . . . Ignored by Resistances 1063 | . 81 257 35 548 142 Core Remaining (%) 79 | 100 78 60 . . . Volleys Fired 175 | . 46 82 2 33 12 Largest 2 | . 2 2 1 1 1 Hottest 91 | . 80 91 28 28 20 Shots Fired 294 | . 92 153 2 35 12 Gun 166 | . 48 82 2 33 1 Cannon 115 | . 44 71 . . . Launcher . | . . . . . . Special 13 | . . . . 2 11 Kinetic 163 | . 48 79 2 33 1 Thermal 118 | . 44 74 . . . Explosive . | . . . . . . Electromagnetic . | . . . . . . Robot Hit Streak 13 | . 11 13 . 9 6 Robot Miss Streak 3 | . 3 3 . 1 1 Penetration Max . | . . . . . . Secondary Targets . | . . . . . . Shots Hit Robots 251 | . 61 103 2 64 21 Core Hits 97 | . 30 45 . 16 6 Critical Kills 6 | . 2 . . 2 2 Critical Parts Destroyed 10 | . . . . 7 3 Critical Strikes 16 | . 2 . . 9 5 Meltdown 1 | . 1 . . . . Destroy 1 | . 1 . . . . Smash 14 | . . . . 9 5 Melee Attacks 115 | . . 2 2 94 17 Impact 111 | . . . . 94 17 Slashing . | . . . . . . Piercing . | . . . . . . Sneak Attacks 2 | . . . . . 2 Combat Hostiles . | . . . . . . Follow-up Attacks . | . . . . . . Damage Inflicted 4912 | . 863 1540 . 1857 652 Guns 1141 | . 250 487 . 394 10 Cannons 1666 | . 613 1053 . . . Explosions . | . . . . . . Melee 2076 | . . . . 1463 613 Ramming 29 | . . . . . 29 Kinetic 1081 | . 250 427 . 394 10 Thermal 1726 | . 613 1113 . . . Explosive . | . . . . . . Electromagnetic . | . . . . . . Impact 2076 | . . . . 1463 613 Slashing . | . . . . . . Piercing . | . . . . . . Highest Corruption 6 | . . . . 6 6 Average Corruption 5 | . . . . 5 6 Corruption Purged . | . . . . . . Corruption Blocked . | . . . . . . Effects 48 | . . . . 35 13 Message Errors 14 | . . . . 10 4 Matter Fused 12 | . . . . 10 2 Heat Flow Errors 5 | . . . . 4 1 Energy Discharges 4 | . . . . 1 3 Data Loss (minor) 5 | . . . . 3 2 Data Loss (major) 3 | . . . . 2 1 Misfires 2 | . . . . 2 . Alerts 3 | . . . . 3 . Overload Shots . | . . . . . . Overflow Damage 631 | . 10 9 . 411 201 Projectiles 19 | . 10 9 . . . Explosions . | . . . . . . Melee 612 | . . . . 411 201 Knockbacks 9 | . . . . 7 2 Impact 9 | . . . . 7 2 Kinetic . | . . . . . . Secondary . | . . . . . . Self-Inflicted Damage 12 | . . . . . 12 Shots . | . . . . . . Rammed 8 | . . . . . 8 Targets Rammed 8 | . . . . . 8 Kicked . | . . . . . . Crushed . | . . . . . . Highest Temperature 330 | . 230 330 . 148 105 Average Temperature 78 | . 70 86 . 57 63 Received Heat Transfer 1344 | . 183 438 81 507 135 Effects 2 | . . 2 . . . Interference 2 | . . 2 . . . Siege Activations . | . . . . . . Robots Corrupted 8 | . . . . 5 3 Combat Hostiles 6 | . . . . 5 1 Parts Fried 11 | . . . . 9 2 Impact Corruptions 23 | . . . . 18 5 Robots Melted 1 | . 1 . . . . Combat Hostiles 1 | . 1 . . . . Parts Melted 7 | . 2 5 . . . Heat Transferred 3511 | . 1295 2216 . . . Parts Sabotaged . | . . . . . . Parts Stolen . | . . . . . . Parts Stripped . | . . . . . . Power Chain Reactions . | . . . . . . Alert | -11 -10 -9 -8 -8 -8 ------- Run | Yrd Mat Mat Mat Gar Mat Peak Influence 1083 | . 162 305 85 1083 477 Initial 454 | . . . 25 42 454 Average 288 | . 46 107 44 613 289 Maximum Alert Level 3 | . . 1 . 3 2 Low Security (%) 62 | 100 100 87 100 14 58 Level 1 8 | . . 12 . 13 . Level 2 14 | . . . . 32 41 Level 3 14 | . . . . 39 . Level 4 . | . . . . . . Level 5 . | . . . . . . High Security . | . . . . . . Max Security . | . . . . . . Squads Dispatched 7 | . 2 4 . . 1 Investigation 3 | . 2 1 . . . Extermination . | . . . . . . Reinforcement 4 | . . 3 . . 1 Assault . | . . . . . . Garrison . | . . . . . . Intercept . | . . . . . . Searches Triggered . | . . . . . . Construction Impeded . | . . . . . . Haulers Reinforced . | . . . . . . Active Scanning Responses . | . . . . . . Cargo Convoy Interrupts . | . . . . . . Stealth | -11 -10 -9 -8 -8 -8 --------- Run | Yrd Mat Mat Mat Gar Mat Distress Signals 5 | . 1 4 . . . Communications Jammed . | . . . . . . Distress Signals . | . . . . . . Times Spotted 112 | . 21 32 15 31 13 Peak Tracking Total 7 | . 3 7 6 6 4 Tactical Retreats 16 | . 2 6 4 3 1 Traps | -11 -10 -9 -8 -8 -8 ------- Run | Yrd Mat Mat Mat Gar Mat Traps Triggered 11 | . 2 3 . 6 . Indirectly . | . . . . . . Trap Hack Attempts . | . . . . . . Triggered . | . . . . . . Disarmed . | . . . . . . Reprogrammed . | . . . . . . Reused . | . . . . . . Traps Extracted . | . . . . . . Installed . | . . . . . . Triggered . | . . . . . . Machines | -11 -10 -9 -8 -8 -8 ---------- Run | Yrd Mat Mat Mat Gar Mat Machines Disabled 9 | . . 1 . 8 . Max in Single Turn 1 | . . 1 . 1 . Garrison Relay 5 | . . . . 5 . Phase Generator 1 | . . . . 1 . Machines Repaired . | . . . . . . Machines Dismantled . | . . . . . . Machines Sabotaged . | . . . . . . Overloaded Fab Kills . | . . . . . . Hacking | -11 -10 -9 -8 -8 -8 --------- Run | Yrd Mat Mat Mat Gar Mat Machines Accessed 24 | . 8 8 2 3 3 Terminals 21 | . 8 6 1 3 3 Fabricators . | . . . . . . Repair Stations . | . . . . . . Recycling Units . | . . . . . . Scanalyzers 2 | . . 2 . . . Garrison Access 1 | . . . 1 . . Total Hacks 79 | . 26 28 7 8 10 Successful 42 | . 16 19 3 . 4 Failed 37 | . 10 9 4 8 6 Catastrophic 4 | . . 1 . 2 1 Database Lockouts . | . . . . . . Manual 44 | . 16 18 4 1 5 Terminals 71 | . 26 22 5 8 10 Fabricators . | . . . . . . Repair Stations . | . . . . . . Recycling Units . | . . . . . . Scanalyzers 6 | . . 6 . . . Garrison Access 2 | . . . 2 . . Terminal Hacks 17 | . 8 6 1 . 2 Record 2 | . . 2 . . . Prototype ID Bank 3 | . 2 1 . . . Branch Access Points 1 | . 1 . . . . Terminal Index 1 | . 1 . . . . Alert Level 1 | . . 1 . . . Unreport Threat 7 | . 3 2 . . 2 Dispatch Records 1 | . . . 1 . . Zone Layout 1 | . 1 . . . . Fabricator Hacks . | . . . . . . Repair Station Hacks . | . . . . . . Recycling Unit Hacks . | . . . . . . Scanalyzer 5 | . . 5 . . . Insert Component 3 | . . 3 . . . Analyze 2 | . . 2 . . . Garrison Access Hacks 1 | . . . 1 . . Unlock Access 1 | . . . 1 . . Unauthorized Hacks 19 | . 8 8 1 . 2 Terminals 19 | . 8 8 1 . 2 Track 1 | . . 1 . . . Botnet 17 | . 8 6 1 . 2 Operators 1 | . . 1 . . . Fabricators . | . . . . . . Repair Stations . | . . . . . . Recycling Units . | . . . . . . Scanalyzers . | . . . . . . Garrison Access . | . . . . . . Data Cores Recovered . | . . . . . . Used . | . . . . . . Hacking Detections 21 | . 7 7 1 3 3 Full Trace Events 3 | . 1 . . 2 . Feedback Events . | . . . . . . Feedback Blocked . | . . . . . . Robot Schematics Acquired . | . . . . . . Robots Built . | . . . . . . Authchips . | . . . . . . Time . | . . . . . . Total Robot Build Rating . | . . . . . . Part Schematics Acquired 2 | . . 2 . . . Parts Built . | . . . . . . Authchips . | . . . . . . Time . | . . . . . . Total Part Build Rating . | . . . . . . Parts Repaired . | . . . . . . Time . | . . . . . . Parts Recycled . | . . . . . . Recycled Matter . | . . . . . . Retrieved Matter . | . . . . . . Retrieved Components . | . . . . . . Parts Scanalyzed 2 | . . 2 . . . Part Schematics Acquired 2 | . . 2 . . . Parts Damaged . | . . . . . . Bothacking | -11 -10 -9 -8 -8 -8 ------------ Run | Yrd Mat Mat Mat Gar Mat Used RIF Installer 2 | . . . . 2 . Hotswap 1 | . . . . 1 . Robots Hacked 9 | . . 1 1 . 7 Non-combat 3 | . . 1 . . 2 Combat 6 | . . . 1 . 5 Robot Hacks Applied 10 | . . 1 1 . 8 parse_system 1 | . . . 1 . . no_distress 1 | . . . . . 1 find_recycling 1 | . . . . . 1 check_alert 1 | . . 1 . . . scatter_targeting 1 | . . . . . 1 amplify_resonance 1 | . . . . . 1 formatsys_high 4 | . . . . . 4 Relay Couplers Released 22 | . . . . 22 . Machine Destruction 22 | . . . . 22 . Attached 4 | . . . . 3 1 Fabnet Peak Effective % . | . . . . . . Robots Rewired 4 | . . . . 4 . Allies Hacked . | . . . . . . Hacks Repelled . | . . . . . . Allies | -11 -10 -9 -8 -8 -8 -------- Run | Yrd Mat Mat Mat Gar Mat Total Allies 10 | . . . . 6 4 Largest Group 3 | . . . . 3 2 Highest-Rated Group 72 | . . . . 72 31 Highest-Rated Ally 31 | . . . . 31 16 Total Orders . | . . . . . . Ally Attacks 38 | . . . . 36 2 Total Damage 942 | . . . . 928 14 Kills 11 | . . . . 10 1 Allies Corrupted . | . . . . . . Allies Melted . | . . . . . . Intel | -11 -10 -9 -8 -8 -8 ------- Run | Yrd Mat Mat Mat Gar Mat Robot Analysis Total . | . . . . . . Derelict Logs Recovered . | . . . . . . Drone Launches . | . . . . . . Drone Recoveries . | . . . . . . Exploration | -11 -10 -9 -8 -8 -8 ------------- Run | Yrd Mat Mat Mat Gar Mat Turns Passed 5276 | 66 1377 1335 170 1959 369 Spaces Moved 3578 | 59 951 550 234 1530 254 Core 36 | 3 . . . . 33 Treads 325 | . . . . 325 . Legs 862 | . . 233 . 410 219 Wheels 1109 | 56 951 100 . . 2 Hover . | . . . . . . Flight 1246 | . . 217 234 795 . Fastest Speed 26 | 50 90 29 26 26 90 Average Speed 105 | 88 120 169 28 86 106 Slowest Speed 1475 | 100 175 1475 29 195 150 Overloaded Moves . | . . . . . . Propulsion Burnouts . | . . . . . . Robots Hopped 3 | . . . 2 1 . Cave-ins Triggered . | . . . . . . Exploration Rate (%) 49 | 4 98 59 16 92 29 Regions Visited 5 Branch Regions . Pre-discovered Areas . | . . . . . . Known Exits Taken 1 | . . . 1 . . Unknown Exits Taken 3 | 1 1 1 . . . Scrap Searched . | . . . . . . Spaces Dug 19 | . . . . 14 5 Terrain Destroyed 91 | . . . . 86 5 Melee 19 | . . . . 14 5 Projectile . | . . . . . . AOE 72 | . . . . 72 . Terrain Rammed . | . . . . . . Walls Destroyed . | . . . . . . Machines Disabled . | . . . . . . Actions | -11 -10 -9 -8 -8 -8 --------- Run | Yrd Mat Mat Mat Gar Mat Total 4612 | 70 1108 818 334 1969 313 Wait 369 | . 57 103 84 109 16 Move 3568 | 58 950 549 230 1527 254 Hop 3 | . . . 2 1 . Pick Up 76 | 8 26 18 5 18 1 Fast Attach 40 | 4 3 10 . 21 2 Attach 14 | . 3 6 2 2 1 Detach . | . . . . . . Swap 43 | . 9 17 1 15 1 Drop 72 | . 14 31 6 20 1 Fire 175 | . 46 82 2 33 12 Melee 115 | . . 2 2 94 17 Ram 8 | . . . . . 8 Kick . | . . . . . . Crush . | . . . . . . Escape Stasis 106 | . . . . 106 . Rewire 23 | . . . . 23 . Trap . | . . . . . . Miscellaneous . | . . . . . . Route ------- -11/Scrapyard -10/Materials (discovered 6 exits: *Mat x3 / *Min x2 / [*Sub]) -9/Materials (discovered 4 exits: *Mat x2 / [*Min x2]) -8/Materials -8/Garrison (discovered 3 exits: *Mat x3) -8/Materials History --------- Turn | Location | Event 28 | -11/Scrapyard | Discovered new exit (range 15) 67 | -11/Scrapyard | Entered Materials 123 | -10/Materials | Discovered new exit (range 16) 272 | -10/Materials | Discovered new exit (range 7) 305 | -10/Materials | Build established: Mutant 356 | -10/Materials | Discovered new exit (range 15) 537 | -10/Materials | Discovered new exit (range 16) 822 | -10/Materials | Identified exit to Mines 1316 | -10/Materials | Discovered new exit (range 13) 1444 | -10/Materials | Entered another Materials area 1444 | -9/Materials | Evolved 2 slots: Propulsion x1, Utility x1 1491 | -9/Materials | Discovered new exit (range 10) 1945 | -9/Materials | Discovered new exit (range 16) 2673 | -9/Materials | Discovered new exit (range 15) 2763 | -9/Materials | Discovered new exit (range 10) 2779 | -9/Materials | Entered another Materials area 2779 | -8/Materials | Evolved 2 slots: Power x1, Propulsion x1 2949 | -8/Materials | Identified exit to Garrison 2949 | -8/Materials | Entered Garrison 3103 | -8/Garrison | Triggered checkpoint 3164 | -8/Garrison | Rescued a captive Derelict 3165 | -8/Garrison | Rescued a captive Derelict 3206 | -8/Garrison | Build established: Infiltrator-Sprinter 3214 | -8/Garrison | Discovered new exit (range 3) 3271 | -8/Garrison | Triggered checkpoint 3277 | -8/Garrison | Triggered checkpoint 3371 | -8/Garrison | Discovered new exit (range 15) 3436 | -8/Garrison | Garrison Relay disabled 3445 | -8/Garrison | Triggered checkpoint 3487 | -8/Garrison | Garrison Relay disabled 3587 | -8/Garrison | Lost 4 parts (1p3n) 3619 | -8/Garrison | Phase Generator disabled 3645 | -8/Garrison | Triggered checkpoint 3711 | -8/Garrison | Triggered checkpoint 3813 | -8/Garrison | Triggered checkpoint 3824 | -8/Garrison | Garrison Relay disabled 3868 | -8/Garrison | Build established: Scavenger-Mutant 3913 | -8/Garrison | Triggered checkpoint 3957 | -8/Garrison | Triggered checkpoint 3973 | -8/Garrison | Triggered checkpoint 3982 | -8/Garrison | Discovered new exit (range 12) 4049 | -8/Garrison | Core integrity fell below 50% 4145 | -8/Garrison | Lost 8 parts (2p4n1u1w) 4186 | -8/Garrison | Garrison Relay disabled 4224 | -8/Garrison | Installed Relay Interface Framework 4347 | -8/Garrison | Garrison Relay disabled 4376 | -8/Garrison | Expanded RIF knowledge: Hotswap 4511 | -8/Garrison | Core integrity fell below 20% 4908 | -8/Garrison | Entered Materials 5123 | -8/Materials | Build established: Bothacker-Mutant 5257 | -8/Materials | Lost 7 parts (1p5n1w) 5277 | -8/Materials | Destroyed by H-55 Commando with Gauss Rifle Last Messages --------------- 05213_ Com. Wheel fried. 05213_ R-06 Scavenger collects Imp. Heat Sink. 05214_ Slug penetrates Wall. 05216_ R-06 Scavenger collects Lgt. Nuclear Core. 05217_ R-06 Scavenger collects Heat Sink. 05217_ Aluminum Leg destroyed. 05220_ H-55 Commando knocked back. 05220_ Penetrated by Slug. 05220_ Remote Datajack destroyed. 05226_ Penetrated by Slug. 05226_ VSS Leg destroyed. 05227_ H-55 Commando suffers critical hit (Smash). 05227_ H-55 Commando destroyed. 05232_ Acquired Assault Rifle. 05234_ Acquired 20 matter. 05236_ Acquired 3 matter. 05244_ M1&GYEUS%MKYGFQ7AG=C7ID 05267_ Q